bitfinex/quotes_ETHUSD_20220119
["timestamp","ask_amount","ask_price","bid_price","bid_amount"]
[1642605900479,0.59728438,3141.9,3139.9,6.15]
[1642605900681,0.59728438,3141.9,3141.4,1.44316942]
[1642605900682,0.79608,3141.8,3141.4,1.44316942]
[1642605900880,0.1224,3142.5,3140.0,3.79058034]
[1642605900881,0.458,3142.1,3140.4,0.01201238]
[1642605901079,1.59206,3142.2,3140.4,0.01201238]
[1642605901279,0.00795793,3141.8,3140.4,0.01201238]
[1642605901679,0.00738951,3141.7,3140.4,0.01201238]
[1642605901878,0.00738951,3141.7,3140.3,3.59442034]
[1642605901879,0.80346951,3141.7,3140.3,3.59442034]
[1642605902081,0.00682109,3141.6,3140.5,0.3]
[1642605902280,0.00682109,3141.6,3140.3,0.6]
[1642605902477,0.01226216,3141.9,3140.3,0.3]
[1642605902478,0.00625266,3141.5,3140.3,0.3]
[1642605902679,0.00625266,3141.5,3141.3,1.46655061]
[1642605902879,0.00568424,3141.4,3141.3,2.60454224]
[1642605903133,0.00568424,3141.4,3141.3,3.20454224]
[1642605903929,0.00568424,3141.4,3141.3,0.3]
[1642605904234,0.00568424,3141.4,3140.6,2.99442034]
[1642605904429,0.00568424,3141.4,3140.0,0.00227369]
[1642605904633,0.00511581,3141.3,3140.0,0.00227369]
[1642605904931,0.00738951,3141.7,3140.0,0.00227369]
[1642605905132,0.458,3141.8,3141.1,1.56067368]
[1642605905133,0.00454739,3141.2,3141.1,1.56067368]
[1642605905330,1.5926,3141.4,3141.1,1.56067368]
[1642605905331,0.00682109,3141.6,3141.1,1.56067368]
[1642605905530,3.38868,3142.1,3141.1,1.56067368]
[1642605905531,0.00454739,3141.2,3141.1,1.56067368]
[1642605905732,0.00625266,3141.5,3141.1,1.56067368]
[1642605905929,0.00454739,3141.2,3141.1,1.56067368]
[1642605906130,3.38868,3142.1,3141.1,2.16067368]
[1642605906131,0.00568424,3141.4,3141.1,2.16067368]
[1642605906334,0.00454739,3141.2,3141.1,1.86067368]
[1642605906532,0.00511581,3141.3,3141.1,1.86067368]
[1642605906735,0.00454739,3141.2,3141.1,1.86067368]
[1642605907176,0.00454739,3141.2,3141.1,2.16067368]
[1642605907777,0.00454739,3141.2,3141.1,1.86067368]
[1642605907977,0.00454739,3141.2,3141.1,2.16067368]
[1642605908677,0.00454739,3141.2,3141.1,1.56067368]
[1642605909078,0.00454739,3141.2,3140.6,1.40399164]
[1642605909283,4.04134075,3141.2,3140.0,1.22707369]
[1642605909480,0.79633,3140.9,3140.0,1.22707369]
[1642605909678,0.79633,3140.9,3140.1,0.00170527]
[1642605909878,0.0022737,3140.8,3140.1,0.00170527]
[1642605910079,0.0022737,3140.8,3140.2,1.28846761]
[1642605910278,0.79633,3140.9,3140.2,1.28846761]
[1642605910279,0.00170527,3140.7,3140.2,1.28846761]
[1642605910478,0.00170527,3140.7,3140.2,1.88846761]
[1642605910721,0.79747685,3141.0,3140.3,3.15319034]
[1642605910920,2.3889063,3142.4,3140.3,3.15319034]
[1642605910921,0.458,3142.2,3140.5,0.0126885]
[1642605911122,0.00113685,3140.8,3140.5,0.0126885]
[1642605911320,0.00113685,3140.8,3140.6,1.33271051]
[1642605911519,0.00113685,3140.8,3140.6,1.93271051]
[1642605912123,0.00113685,3140.8,3140.6,0.3]
[1642605912524,0.00113685,3140.8,3140.4,0.00113685]
[1642605912725,0.00113685,3140.8,3140.4,0.30113685]
[1642605913124,0.00113685,3140.8,3140.4,0.00113685]
[1642605913526,0.79629,3140.7,3140.2,4.83459322]
[1642605913726,0.79629,3140.7,3140.2,1.84017288]
[1642605914027,0.00170527,3140.6,3139.5,3.96560251]
[1642605914229,0.00170527,3140.6,3139.5,0.15110251]
[1642605914473,0.1272,3141.1,3139.7,0.00341054]
[1642605914474,0.00113685,3140.5,3139.7,0.00341054]
[1642605914768,0.00113685,3140.5,3139.5,0.15110251]
[1642605914769,0.79636,3140.4,3139.6,0.00397896]
[1642605914969,0.09636,3140.4,3139.6,0.00397896]
[1642605915169,0.09636,3140.4,3140.1,1.53904736]
[1642605915569,0.09636,3140.4,3140.1,1.83904736]
[1642605915771,0.09636,3140.4,3139.6,0.00397896]
[1642605915972,0.1272,3140.7,3140.4,0.60364]
[1642605916371,0.00170527,3140.6,3140.4,0.60364]
[1642605916771,0.00113685,3140.5,3140.4,0.60364]
[1642605917573,0.00113685,3140.5,3139.6,0.00397896]
[1642605917773,0.79652,3140.3,3139.6,0.00397896]
[1642605917973,0.79652,3140.3,3139.5,1.46995993]
[1642605917974,0.1272,3140.2,3139.5,1.46995993]
[1642605918252,0.1272,3140.2,3139.5,1.76995993]
[1642605918454,4.16260631,3140.2,3139.6,0.00397896]
[1642605918952,0.1272,3140.2,3139.3,0.80201423]
[1642605919151,0.00113685,3140.5,3139.3,1.00201423]
[1642605919351,0.00113685,3140.5,3139.4,0.00511581]
[1642605919752,0.00113685,3140.5,3140.0,1.3399402]
[1642605920151,0.00113685,3140.5,3140.1,0.30113685]
[1642605920752,0.00113685,3140.5,3140.2,1.26942499]
[1642605920952,0.00113685,3140.5,3140.1,0.30113685]
[1642605921153,0.00113685,3140.5,3140.1,0.60113685]
[1642605921970,0.00113685,3140.5,3140.2,1.24646287]
[1642605925178,0.00113685,3140.5,3140.1,0.30113685]
[1642605926019,0.00113685,3140.5,3140.1,0.00113685]
[1642605926422,0.12833685,3140.5,3140.1,0.00113685]
[1642605927428,0.79639,3140.3,3140.1,0.00113685]
[1642605928127,0.1272,3140.4,3140.1,0.00113685]
[1642605928326,0.00113685,3140.5,3140.1,0.00113685]
[1642605929128,0.00113685,3140.5,3140.1,0.30113685]
[1642605929395,0.00113685,3140.5,3140.2,5.34423576]
[1642605929587,0.00113685,3140.5,3140.3,0.3]
[1642605930189,0.00113685,3140.5,3140.2,0.3]
[1642605930388,0.00113685,3140.5,3140.2,2.95606576]
[1642605930590,0.00113685,3140.5,3140.2,3.25606576]
[1642605930790,0.00113685,3140.5,3140.2,0.3]
[1642605930990,0.00113685,3140.5,3140.1,1.39723685]
[1642605931190,0.00113685,3140.5,3140.2,2.95606576]
[1642605931392,0.00113685,3140.5,3140.3,2.38801]
[1642605931592,0.00113685,3140.5,3140.4,10.02283576]
[1642605931796,3.685e-05,3140.5,3140.4,10.02283576]
[1642605931995,0.1272,3142.4,3140.9,0.79581]
[1642605932196,0.1272,3142.4,3141.0,3.46020597]
[1642605932503,0.00909477,3142.1,3141.1,2.95606576]
[1642605932794,0.00852635,3142.0,3141.9,1.0949269]
[1642605933232,0.00852635,3142.0,3141.3,4.80294647]
[1642605933233,0.00852635,3142.0,3141.3,5.40294647]
[1642605933535,0.00852635,3142.0,3141.3,2.21874647]
[1642605933732,0.00795793,3141.9,3141.3,2.21874647]
[1642605933933,0.00795793,3141.9,3141.3,1.76074647]
[1642605934136,0.0073895,3141.8,3141.3,1.76074647]
[1642605934337,0.0073895,3141.8,3141.4,1.14748608]
[1642605934534,0.1272,3142.1,3141.4,1.14748608]
[1642605934535,0.00682108,3141.7,3141.4,1.14748608]
[1642605934935,0.00625266,3141.6,3141.4,1.14748608]
[1642605935240,0.00568423,3141.5,3141.4,1.44748608]
[1642605936883,0.00568423,3141.5,3141.4,4.89748608]
[1642605937883,0.00568423,3141.5,3141.4,1.14748608]
[1642605938081,2.1144428,3141.5,3141.3,0.3]
[1642605938284,2.23595857,3141.4,3140.7,1.2151]
[1642605938486,2.23595857,3141.4,3140.4,3.8356]
[1642605938487,2.10875857,3141.3,3140.4,3.8356]
[1642605938686,2.10875857,3141.3,3140.1,3.67993685]
[1642605938687,0.1272,3141.2,3140.5,0.49604771]
[1642605938889,2.90492857,3141.1,3140.4,1.4339722]
[1642605939087,2.10603509,3141.0,3140.8,1.18124562]
[1642605939289,0.00284211,3141.0,3140.8,1.18124562]
[1642605939486,0.00227369,3140.9,3140.8,1.18124562]
[1642605939686,0.00227369,3140.9,3140.8,1.67720469]
[1642605940287,0.00227369,3140.9,3140.8,1.49613469]
[1642605940490,0.00227369,3140.9,3140.8,1.00017562]
[1642605940750,0.00227369,3140.9,3140.1,4.13793685]
[1642605940949,0.00227369,3140.9,3140.2,0.4961209]
[1642605941247,0.92514747,3140.8,3140.3,0.00113685]
[1642605941448,0.79794747,3140.8,3140.3,0.00113685]
[1642605941646,0.00113684,3140.7,3140.3,0.00113685]
[1642605942048,0.00113684,3140.7,3140.4,1.28611118]
[1642605942251,1.59393664,3140.7,3140.4,1.58611118]
[1642605942449,2.39031974,3140.7,3140.4,1.58611118]
[1642605942651,2.39031974,3140.7,3140.4,1.28611118]
[1642605942852,2.10241788,3140.6,3140.4,1.28611118]
[1642605943058,0.7964,3140.6,3140.4,1.28611118]
[1642605943859,2.39031974,3140.7,3140.4,1.58611118]
[1642605944060,0.79751994,3140.7,3140.4,1.58611118]
[1642605944259,0.79751994,3140.7,3140.5,3.45177644]
[1642605944260,0.00113684,3140.7,3140.5,3.45177644]
[1642605944483,0.00113684,3140.7,3140.6,0.49571068]
[1642605944688,0.00113684,3140.7,3140.6,3.85]
[1642605944885,0.00113684,3140.7,3140.6,4.64571068]
[1642605945086,0.00113684,3140.7,3140.6,1.09571068]
[1642605945288,0.00113684,3140.7,3140.6,0.3]
[1642605945486,0.00113684,3140.7,3140.4,1.58611118]
[1642605946188,0.00113684,3140.7,3140.5,0.49526973]
[1642605946587,0.00113684,3140.7,3140.4,1.58611118]
[1642605947388,0.00113684,3140.7,3140.6,0.00113684]
[1642605949241,0.00113684,3140.7,3140.6,2.80317411]
[1642605949442,0.00113684,3140.7,3140.6,3.29887665]
[1642605949643,0.00113684,3140.7,3140.6,7.34887665]
[1642605949841,0.00113684,3140.7,3140.6,0.79683938]
[1642605950043,0.00113684,3140.7,3140.6,3.27245379]
[1642605950245,0.00113684,3140.7,3140.6,3.57245379]
[1642605950444,0.00113684,3140.7,3140.6,0.79683938]
[1642605950644,0.00113684,3140.7,3140.6,0.49683938]
[1642605950848,3.18437,3140.6,3140.5,0.49570254]
[1642605951044,3.18437,3140.6,3140.5,1.33735306]
[1642605951445,3.18721212,3140.6,3140.5,1.33735306]
[1642605951644,3.18721212,3140.6,3140.4,1.22479673]
[1642605952185,0.0022737,3140.5,3139.7,19.8379]
[1642605952387,0.0022737,3140.5,3139.8,0.458]
[1642605952589,4.7765834,3140.6,3139.7,1.2279]
[1642605952590,0.00170527,3140.4,3139.7,1.2279]
[1642605952790,0.00170527,3140.4,3139.8,0.458]
[1642605952991,0.79609,3140.2,3139.8,0.458]
[1642605953396,0.79609,3140.2,3139.9,1.3879234]
[1642605953397,0.00170527,3140.1,3139.9,1.3879234]
[1642605953592,0.00170527,3140.1,3139.9,1.8459234]
[1642605953792,0.79609,3140.2,3139.9,1.8459234]
[1642605953793,0.00113685,3140.0,3139.9,1.8459234]
[1642605954191,0.00113685,3140.0,3139.9,2.9838335]
[1642605957439,0.79728785,3140.0,3139.9,2.9838335]
[1642605958042,0.00113685,3140.0,3139.9,2.9838335]
[1642605960384,0.79732305,3140.0,3139.9,2.9838335]
[1642605960585,0.79732305,3140.0,3139.9,6.0338335]
[1642605960789,0.00113685,3140.0,3139.9,6.0338335]
[1642605961689,4.10797,3140.4,3139.9,6.0338335]
[1642605961690,2.38848,3140.4,3140.0,6.1511]
[1642605961891,2.38848,3140.4,3140.1,0.458]
[1642605962090,0.00170527,3140.3,3140.1,0.458]
[1642605962291,0.00170527,3140.3,3140.2,17.81391]
[1642605962489,2.38848,3140.4,3140.2,18.27191]
[1642605962689,2.38848,3140.4,3140.3,1.34171091]
[1642605962890,2.38848,3140.4,3140.3,1.79971091]
[1642605963140,2.39075369,3140.4,3140.3,1.79971091]
[1642605963338,0.00227369,3140.4,3140.3,1.79971091]
[1642605963538,0.00227369,3140.4,3140.3,19.61362091]
[1642605963741,0.00227369,3140.4,3140.3,1.79971091]
[1642605963939,0.00227369,3140.4,3140.3,0.458]
[1642605964541,0.00227369,3140.4,3140.3,6.308]
[1642605965346,4.7767317,3140.9,3140.3,6.308]
[1642605965347,4.7760776,3141.6,3140.3,6.308]
[1642605965546,8.18,3142.5,3140.4,17.51061944]
[1642605965547,10.63382,3142.0,3140.4,17.51061944]
[1642605965744,3.18382,3142.0,3141.9,1.18075129]
[1642605965942,1.66936422,3142.7,3141.9,1.18075129]
[1642605965943,1.5915094,3142.1,3141.9,1.84658933]
[1642605966142,3.18324,3142.4,3141.9,1.84658933]
[1642605966143,0.00909478,3142.0,3141.9,1.84658933]
[1642605966344,0.00909478,3142.0,3141.9,2.09481594]
[1642605966542,2.15790427,3142.0,3141.9,1.6513302]
[1642605966889,0.01080005,3142.3,3141.9,2.09465195]
[1642605966890,0.7957897,3142.2,3141.9,2.09465195]
[1642605967089,0.7957897,3142.2,3142.0,0.443249]
[1642605967290,0.7957897,3142.2,3141.9,1.1933302]
[1642605967291,0.0096632,3142.1,3141.9,1.1933302]
[1642605967493,0.0096632,3142.1,3142.0,0.458]
[1642605967494,1.6010332,3142.1,3142.0,0.458]
[1642605967698,1.6010332,3142.1,3141.8,0.458]
[1642605967896,1.6010332,3142.1,3141.1,4.05543976]
[1642605967897,3.74613142,3142.0,3141.1,4.05543976]
[1642605968098,2.31335492,3141.9,3141.2,0.44322546]
[1642605968298,2.31335492,3141.9,3140.7,1.6710748]
[1642605968299,2.15426492,3141.8,3140.7,1.6710748]
[1642605968499,2.16222285,3141.8,3141.4,1.11897444]
[1642605968698,1.59183,3141.6,3141.4,1.11897444]
[1642605969099,0.00625266,3141.5,3141.4,1.11897444]
[1642605969498,0.00625266,3141.5,3140.7,3.01278571]
[1642605969703,0.00625266,3141.5,3140.7,1.6710748]
[1642605969900,1.591893,3142.1,3140.5,5.21623976]
[1642605969901,0.79588,3141.3,3140.5,5.21623976]
[1642605970110,1.59185,3141.3,3140.5,5.21623976]
[1642605970299,1.59185,3141.3,3140.5,2.87713976]
[1642605970300,0.00454739,3141.2,3140.5,2.87713976]
[1642605970505,0.00454739,3141.2,3140.7,1.2019266]
[1642605970738,0.00397897,3141.1,3140.8,2.62781613]
[1642605971146,0.00341054,3141.0,3140.8,21.69581613]
[1642605971344,0.00341054,3141.0,3140.9,9.69344266]
[1642605971547,0.79588,3141.8,3140.9,9.69344266]
[1642605971744,0.79588,3141.8,3141.5,1.37404544]
[1642605971946,0.00738951,3141.7,3141.6,2.74680597]
[1642605972346,0.00795793,3141.8,3141.6,2.74680597]
[1642605973348,0.00795793,3141.8,3141.5,4.03445847]
[1642605973549,0.00795793,3141.8,3141.5,1.37404544]
[1642605973749,0.00795793,3141.8,3141.2,0.458]
[1642605974988,0.00795793,3141.8,3141.4,1.47116416]
[1642605975189,0.00795793,3141.8,3141.2,0.458]
[1642605975989,0.7959496,3141.7,3141.2,0.458]
[1642605976188,0.7959496,3141.7,3140.7,1.46901091]
[1642605976189,0.79602,3141.5,3140.7,0.1273]
[1642605976391,0.79602,3141.5,3140.7,1.22232826]
[1642605976588,0.00568424,3141.4,3140.7,1.22232826]
[1642605976989,0.00511581,3141.3,3140.7,1.22232826]
[1642605977190,0.00511581,3141.3,3140.9,1.54984872]
[1642605977390,0.80059739,3141.2,3140.9,1.54984872]
[1642605977790,0.00397897,3141.1,3140.9,1.54984872]
[1642605978131,0.00341054,3141.0,3140.9,1.54984872]
[1642605978336,0.00341054,3141.0,3140.9,5.69606021]
[1642605979136,0.00341054,3141.0,3140.9,2.84606021]
[1642605980438,0.00341054,3141.0,3140.9,8.52597642]
[1642605980641,0.00341054,3141.0,3140.9,8.82597642]
[1642605980841,0.00341054,3141.0,3140.9,12.16972063]
[1642605981141,0.00341054,3141.0,3140.9,27.74980442]
[1642605981344,0.00341054,3141.0,3140.9,29.09151533]
[1642605981641,0.00341054,3141.0,3140.9,27.63307112]
[1642605981900,0.00341054,3141.0,3140.9,4.64577112]
[1642605982185,0.00341054,3141.0,3140.9,3.30406021]
[1642605982384,0.00341054,3141.0,3140.5,0.1273]
[1642605982585,0.00341054,3141.0,3140.4,2.92745512]
[1642605982586,0.00341054,3141.0,3140.3,11.9326]
[1642605982785,0.15909,3141.8,3140.3,11.9326]
[1642605982786,0.00284212,3140.9,3140.3,11.9326]
[1642605982989,0.796161,3140.8,3140.3,8.697]
[1642605983190,0.79621,3140.6,3139.9,1.46171091]
[1642605983392,0.79621,3140.6,3139.8,2.99115221]
[1642605983591,0.79621,3140.6,3140.0,0.00227369]
[1642605984393,0.7962548,3140.5,3140.0,0.00227369]
[1642605984592,1.59246,3140.4,3140.0,0.00227369]
[1642605985393,1.59246,3140.4,3139.4,1.34171091]
[1642605985643,0.7965,3139.9,3139.3,3.26093091]
[1642605985840,0.79645,3140.1,3139.2,1.63579421]
[1642605985841,0.79646,3140.1,3139.8,0.00113685]
[1642605986140,0.79646,3140.1,3139.3,0.00397896]
[1642605986339,1.5929889,3140.0,3139.3,0.00397896]
[1642605986539,3.1859789,3140.0,3139.3,0.00397896]
[1642605986741,0.79652,3139.8,3139.3,0.00397896]
[1642605987141,0.79652,3139.8,3139.2,0.05005]
[1642605987339,0.00227369,3139.7,3139.2,0.05005]
[1642605987742,0.79652,3139.8,3139.2,0.05005]
[1642605987743,1.59481527,3139.6,3139.2,0.05005]
[1642605987942,0.79651,3139.5,3139.2,0.05005]
[1642605988142,1.59412684,3139.5,3139.2,0.05005]
[1642605988343,1.59412684,3139.5,3139.3,0.42271709]
[1642605988945,0.79764684,3139.5,3139.3,0.42271709]
[1642605991995,0.00113684,3139.5,3139.3,0.42271709]
[1642605992392,0.00113684,3139.5,3139.4,18.61]
[1642605992592,0.00113684,3139.5,3139.4,20.3599655]
[1642605992797,0.00033684,3139.5,3139.4,23.5586002]
[1642605992994,0.00033684,3139.5,3139.4,22.1179655]
[1642605993240,0.00033684,3139.5,3139.4,22.5453655]
[1642605993440,0.00033684,3139.5,3139.4,28.7644855]
[1642605993641,0.00033684,3139.5,3139.4,27.01452]
[1642605993840,0.00033684,3139.5,3139.4,32.00720973]
[1642605994040,0.00033684,3139.5,3139.4,31.21108973]
[1642605994538,0.00033684,3139.5,3139.4,29.49112407]
[1642605995344,0.00033684,3139.5,3139.4,9.58112407]
[1642605995541,0.00033684,3139.5,3139.4,7.84088973]
[1642605995743,0.00033684,3139.5,3139.4,2.11788973]
[1642605996142,0.00033684,3139.5,3139.4,4.53052116]
[1642605996541,0.00033684,3139.5,3139.4,0.83052116]
[1642605997184,0.00033684,3139.5,3139.4,3.38052116]
[1642605999088,0.00033684,3139.5,3139.4,5.73052116]
[1642605999286,0.00033684,3139.5,3139.4,24.34052116]
[1642605999487,0.00033684,3139.5,3139.4,25.62788973]
[1642606001449,0.00033684,3139.5,3139.4,23.27788973]
[1642606001649,0.00033684,3139.5,3139.4,4.66788973]
[1642606001850,0.00033684,3139.5,3139.4,0.83052116]
[1642606002050,0.00033684,3139.5,3139.4,6.98052116]
[1642606002652,0.00033684,3139.5,3139.4,8.26788973]
[1642606003057,0.00033684,3139.5,3139.4,26.87788973]
[1642606003653,0.00033684,3139.5,3139.4,8.26788973]
[1642606003853,0.00033684,3139.5,3139.4,6.98052116]
[1642606004488,0.00033684,3139.5,3139.4,8.26788973]
[1642606005093,0.00033684,3139.5,3139.4,28.14258973]
[1642606005495,0.00033684,3139.5,3139.4,29.75542407]
[1642606005693,0.00033684,3139.5,3139.4,30.42418407]
[1642606005892,0.00033684,3139.5,3139.4,32.15158407]
[1642606006296,0.00033684,3139.5,3139.4,31.01428407]
[1642606006494,0.00033684,3139.5,3139.4,29.40144973]
[1642606007894,1.59211,3140.9,3140.4,1.28545145]
[1642606008141,2.38836,3141.2,3140.5,3.49237431]
[1642606008342,2.38836,3141.2,3140.6,5.53052116]
[1642606008541,1.1611,3141.6,3140.7,3.56769684]
[1642606008542,0.00170527,3141.1,3140.7,3.56769684]
[1642606008740,0.00170527,3141.1,3140.8,0.83052116]
[1642606008942,0.00113684,3141.0,3140.9,3.47297951]
[1642606009140,0.00113684,3141.0,3140.9,0.83052116]
[1642606009340,0.00397896,3141.0,3140.9,19.44052116]
[1642606009541,0.00397896,3141.0,3140.9,21.2329589]
[1642606009741,0.00397896,3141.0,3140.9,20.9329589]
[1642606010246,0.00397896,3141.0,3140.9,22.67847369]
[1642606010642,0.00397896,3141.0,3140.9,23.67847369]
[1642606011914,0.00397896,3141.0,3140.9,24.96399127]
[1642606012109,0.00397896,3141.0,3140.9,25.26399127]
[1642606012913,0.00397896,3141.0,3140.9,25.39129127]
[1642606014211,7.896e-05,3141.0,3140.9,29.62185353]
[1642606014417,7.896e-05,3141.0,3140.9,28.17633874]
[1642606014614,7.896e-05,3141.0,3140.9,28.17967032]
[1642606016240,7.896e-05,3141.0,3140.9,8.28415274]
[1642606016539,7.896e-05,3141.0,3140.9,7.85685274]
[1642606016939,7.896e-05,3141.0,3140.9,8.15685274]
[1642606017843,7.896e-05,3141.0,3140.8,0.1273]
[1642606019243,0.79594,3140.9,3140.4,1.73642688]
[1642606019491,0.79594,3140.9,3140.7,19.79194583]
[1642606019693,0.79594,3140.9,3140.8,0.458]
[1642606019891,0.79594,3140.9,3140.8,3.11600522]
[1642606020094,0.79594,3140.9,3140.8,4.59218163]
[1642606020292,1.59195896,3141.0,3140.9,18.61]
[1642606020293,7.896e-05,3141.0,3140.9,18.61]
[1642606020895,7.896e-05,3141.0,3140.8,0.458]
[1642606021894,1.59194896,3141.0,3140.8,19.068]
[1642606022097,7.896e-05,3141.0,3140.8,19.068]
[1642606022296,7.896e-05,3141.0,3140.8,0.758]
[1642606022493,7.896e-05,3141.0,3140.8,0.458]
[1642606023159,1.59209896,3141.0,3140.8,0.758]
[1642606023552,1.59209896,3141.0,3140.8,0.458]
[1642606025356,1.59209896,3141.0,3140.5,0.00227369]
[1642606025756,1.59209896,3141.0,3140.3,0.00341054]
[1642606026155,1.59209896,3141.0,3139.9,0.00568423]
[1642606026354,1.59209896,3141.0,3139.9,1.32127305]
[1642606026557,1.59209896,3141.0,3140.0,18.61]
[1642606026756,1.59209896,3141.0,3140.0,18.91511581]
[1642606026995,1.59209896,3141.0,3140.1,1.30869111]
[1642606027194,1.59209896,3141.0,3140.2,0.458]
[1642606027395,1.59209896,3141.0,3140.2,1.93247826]
[1642606027599,1.59209896,3141.0,3140.3,0.00341054]
[1642606029200,1.59209896,3141.0,3140.3,1.56162043]
[1642606029402,1.59209896,3141.0,3140.3,2.82816141]
[1642606029602,1.59209896,3141.0,3140.4,0.00284212]
[1642606030413,1.59209896,3141.0,3140.8,1.50350528]
[1642606030642,1.59209896,3141.0,3140.9,3.708]
[1642606031243,1.59209896,3141.0,3140.9,5.04383275]
[1642606031448,1.59209896,3141.0,3140.9,1.79383275]
[1642606031643,1.59209896,3141.0,3140.9,0.458]
[1642606033146,1.59209896,3141.0,3140.4,0.00284212]
[1642606033346,1.59209896,3141.0,3140.5,0.458]
[1642606033749,1.59209896,3141.0,3140.6,0.00170527]
[1642606034404,1.59209896,3141.0,3140.4,0.00284212]
[1642606036201,1.59209896,3141.0,3140.3,0.00341054]
[1642606036407,1.59239,3140.8,3140.3,0.00341054]
[1642606036604,1.86239,3140.8,3140.3,0.00341054]
[1642606037002,1.86239,3140.8,3139.9,0.00568423]
[1642606038003,1.59239,3140.8,3140.0,0.39701181]
[1642606038445,1.59239,3140.8,3140.1,0.00454739]
[1642606038644,1.59239,3140.8,3140.2,0.39701181]
[1642606039047,1.59239,3140.8,3140.3,0.00341054]
[1642606039645,1.59239,3140.8,3140.1,0.39701181]
[1642606039849,1.59239,3140.8,3140.1,0.4015592]
[1642606040047,1.59239,3140.8,3140.2,0.40099077]
[1642606040250,1.59239,3140.8,3140.3,0.39701181]
[1642606040447,1.59239,3140.8,3140.3,0.40042235]
[1642606040647,1.59239,3140.8,3140.4,0.39985393]
[1642606040850,1.59239,3140.8,3140.5,0.39701181]
[1642606041149,1.59239,3140.8,3140.6,0.00170527]
[1642606041551,1.59239,3140.8,3140.1,0.39718657]
[1642606041749,1.59239,3140.8,3140.1,0.40173396]
[1642606042005,1.59239,3140.8,3140.2,0.40116553]
[1642606042205,1.59239,3140.8,3140.3,0.39718657]
[1642606042408,1.59239,3140.8,3140.4,0.39718657]
[1642606042606,1.59239,3140.8,3140.4,0.00284212]
[1642606043008,1.59239,3140.8,3139.9,0.40338007]
[1642606043205,1.59239,3140.8,3140.0,0.40281165]
[1642606043408,1.59239,3140.8,3140.1,0.39769584]
[1642606043607,1.59239,3140.8,3140.1,0.40224323]
[1642606043807,1.59239,3140.8,3140.2,0.4016748]
[1642606043808,4.6002198,3140.8,3140.2,0.4016748]
[1642606044007,4.6002198,3140.8,3140.3,0.39769584]
[1642606044008,1.59239,3140.8,3140.3,0.39769584]
[1642606044210,2.97194614,3140.7,3140.3,0.40110638]
[1642606044407,2.97194614,3140.7,3140.4,0.00284212]
[1642606044408,2.9722458,3140.7,3140.4,0.00284212]
[1642606044607,1.59278,3140.6,3140.4,0.00284212]
[1642606044806,1.59278,3140.6,3139.8,0.00046316]
[1642606044807,3.7696589,3140.6,3139.9,0.00568423]
[1642606045007,3.18554,3140.5,3140.0,0.39782936]
[1642606045207,6.19708055,3140.5,3140.0,0.39782936]
[1642606045409,5.74639,3140.4,3140.1,0.00454739]
[1642606045846,0.79639,3140.4,3139.9,0.00568423]
[1642606047150,2.38928,3140.2,3139.9,0.00568423]
[1642606049249,3.75448,3140.2,3139.9,0.00568423]
[1642606049694,1.3652,3140.2,3139.9,0.00568423]
[1642606050093,0.3461,3140.3,3139.9,0.00568423]
[1642606050293,0.79639,3140.4,3139.9,0.00568423]
[1642606053550,0.79639,3140.4,3140.2,1.53756484]
[1642606053752,0.2392,3140.7,3140.3,2.66841567]
[1642606053952,0.2392,3140.7,3140.4,0.458]
[1642606054156,0.2392,3140.7,3140.4,0.46084212]
[1642606054452,0.2392,3140.7,3140.6,1.12971417]
[1642606054656,0.2392,3140.7,3140.4,0.46084212]
[1642606054952,0.2392,3140.7,3140.6,0.00170527]
[1642606058698,0.79617,3141.0,3140.6,0.00170527]
[1642606058899,1.59235,3140.9,3140.6,0.00170527]
[1642606059100,0.79617,3141.0,3140.6,0.00170527]
[1642606059299,0.79617,3141.0,3140.6,1.09744766]
[1642606059500,0.79617,3141.0,3140.7,2.90696777]
[1642606059803,0.79617,3141.0,3140.7,3.36610462]
[1642606060098,0.79617,3141.0,3140.8,1.19483652]
[1642606060298,0.79617,3141.0,3140.9,0.458]
[1642606062353,1.59545054,3141.5,3140.9,0.458]
[1642606062550,0.79596,3141.3,3140.9,0.458]
[1642606062951,0.00170527,3141.2,3141.0,1.09713529]
[1642606063152,0.00170527,3141.2,3141.0,3.6706168]
[1642606063353,0.15909,3141.9,3141.1,4.07197127]
[1642606063354,1.59179,3141.9,3141.1,4.07197127]
[1642606063853,0.00170527,3141.2,3141.1,1.43348937]
[1642606064053,0.00170527,3141.2,3140.9,0.458]
[1642606064499,0.00113685,3141.1,3140.9,0.458]
[1642606064903,0.79594,3141.3,3140.9,0.458]
[1642606065299,0.79594,3141.3,3141.0,0.39166458]
[1642606065300,2.18073104,3141.2,3141.0,0.39166458]
[1642606065501,0.79594,3141.3,3141.0,0.39166458]
[1642606065698,0.00113685,3141.1,3141.0,0.39166458]
[1642606066300,0.00113685,3141.1,3140.9,0.39166458]
[1642606066499,0.00113685,3141.1,3140.8,2.58157839]
[1642606066500,0.00113685,3141.1,3141.0,0.39166458]
[1642606066901,0.00113685,3141.1,3140.9,0.39166458]
[1642606067102,0.00113685,3141.1,3141.0,0.39166458]
[1642606067507,0.00113685,3141.1,3140.9,0.39166458]
[1642606067904,0.00113685,3141.1,3140.8,0.39166458]
[1642606068147,0.00113685,3141.1,3140.9,0.39166458]
[1642606068346,0.00113685,3141.1,3141.0,0.39166458]
[1642606068847,0.00113685,3141.1,3141.0,2.84760804]
[1642606069048,0.00113685,3141.1,3141.0,3.23927262]
[1642606069648,0.00113685,3141.1,3141.0,0.39166458]
[1642606069851,0.00113685,3141.1,3140.7,0.39280143]
[1642606070054,0.00113685,3141.1,3140.8,0.39166458]
[1642606070252,0.00113685,3141.1,3140.9,0.39166458]
[1642606070451,0.00113685,3141.1,3141.0,0.39166458]
[1642606070852,0.00113685,3141.1,3140.9,2.90061526]
[1642606071059,0.00113685,3141.1,3141.0,0.39166458]
[1642606071897,0.00113685,3141.1,3140.7,0.39280143]
[1642606072100,0.00113685,3141.1,3140.8,0.39166458]
[1642606072299,0.00113685,3141.1,3140.9,0.39166458]
[1642606072500,2.17515639,3141.1,3140.7,0.00113685]
[1642606072901,2.17515639,3141.1,3140.6,0.39345747]
[1642606073103,2.17515639,3141.1,3140.7,0.00113685]
[1642606073104,0.79611,3141.0,3140.7,0.00113685]
[1642606073301,2.17515639,3141.1,3140.7,0.00113685]
[1642606073302,0.00113685,3141.1,3140.8,1.14006876]
[1642606073501,0.00113685,3141.1,3140.9,0.3917522]
[1642606073902,0.00113685,3141.1,3141.0,1.50216722]
[1642606074105,0.00113685,3141.1,3141.0,4.82532862]
[1642606074304,0.00113685,3141.1,3141.0,28.89332862]
[1642606074504,0.00113685,3141.1,3141.0,32.99056724]
[1642606074704,0.00113685,3141.1,3141.0,33.99056724]
[1642606075208,0.00113685,3141.1,3141.0,34.91354724]
[1642606075667,0.00113685,3141.1,3141.0,33.78624724]